fUSD/lending_fUSD_20241216
["ID","MTS","AMOUNT","RATE_DAILY","PERIOD"]
[345515762,1734307832801,-536.58827985,0.00022,2]
[345515763,1734307832818,-356.5541094,0.0002205,2]
[345515764,1734307832835,-300.0,0.00022399,2]
[345515765,1734307832852,-569.39690352,0.000224,3]
[345515766,1734307832863,-1097.52574708,0.000224,3]
[345515767,1734307832875,-1679.51668762,0.000224,3]
[345515768,1734307832886,-653.56066178,0.000224,3]
[345515769,1734307832895,-858.69,0.000224,31]
[345515770,1734307832904,-858.69,0.000224,31]
[345515771,1734307832914,-858.69,0.000224,31]
[345515772,1734307832926,-858.69,0.000224,31]
[345515773,1734307832941,-858.69,0.000224,31]
[345515774,1734307832950,-858.69,0.000224,31]
[345515775,1734307832960,-858.69,0.000224,31]
[345515776,1734307832970,-858.69,0.000224,31]
[345515777,1734307832979,-858.69,0.000224,31]
[345515778,1734307832989,-858.69,0.000224,31]
[345515779,1734307832998,-429.31111973,0.000224,31]
[345515780,1734307833010,-429.37888027,0.000224,31]
[345515781,1734307833020,-858.69,0.000224,31]
[345515782,1734307833030,-858.69,0.000224,31]
[345515783,1734307833040,-184.56667355,0.000224,31]
[345515784,1734307833053,-674.12332645,0.000224,31]
[345515785,1734307833066,-858.69,0.000224,31]
[345515786,1734307833076,-858.69,0.000224,31]
[345515787,1734307833095,-1014.29,0.00022499,2]
[345515788,1734307833106,-827.32688444,0.00022499,2]
[345515789,1734307833116,-504.03098955,0.00022499,2]
[345515790,1734307833126,-1031.49810065,0.000225,4]
[345515791,1734307833269,-1937.63733463,0.000225,4]
[345515792,1734307833284,-10791.24372821,0.000225,4]
[345515834,1734307838258,-500.0,0.00022498,3]
[345515835,1734307838268,-500.0,0.00022499,3]
[345515836,1734307838277,-446.14367545,0.00022499,3]
[345515837,1734307838290,-53.85632455,0.00022499,3]
[345515838,1734307838299,-2362.1296492,0.000225,4]
[345515839,1734307838312,-2408.04111451,0.000225,4]
[345515840,1734307838325,-6836.86997854,0.000225,4]
[345515841,1734307838337,-10854.36076347,0.000225,4]
[345515842,1734307838350,-34972.90834035,0.000225,4]
[345515843,1734307838416,-122534.4360434,0.000225,4]
[345515844,1734307838426,-703.04951514,0.000225,2]
[345515845,1734307838436,-11315.43332446,0.000225,2]
[345515846,1734307838446,-388138.81407088,0.000225,2]
[345515847,1734307838457,-365.71928783,0.000225,2]
[345515848,1734307838514,-48119.37440858,0.000225,2]
[345515849,1734307838526,-263.84190539,0.000225,2]
[345515850,1734307838537,-820.000011,0.000225,2]
[345515851,1734307838550,-594.99998642,0.000225,2]
[345515852,1734307838566,-2066.501043,0.000225,2]
[345515853,1734307838577,-17234.67888702,0.000225,2]
[345515854,1734307838631,-51329.44455803,0.000225,2]
[345515855,1734307838643,-146337.34933167,0.000225,2]
[345515859,1734307841737,-489619.87644842,0.000225,2]
[345515860,1734307841776,-3579.215,0.000225,2]
[345515861,1734307841792,-8956.1,0.000225,2]
[345515862,1734307841803,-735.15365519,0.000225,2]
[345515863,1734307841842,-500.0,0.00022499,3]
[345515864,1734307841852,-189472.93226454,0.000225,2]
[345515865,1734307843820,-171.45,0.00022499,3]
[345515866,1734307843835,-323.99,0.00022499,3]
[345515867,1734307843846,-176.01,0.00022499,3]
[345515868,1734307843856,-309.61,0.00022499,3]
[345515869,1734307843868,-190.39,0.00022499,3]
[345515870,1734307843878,-500.0,0.00022499,3]
[345515871,1734307843887,-3799.86,0.000225,2]
[345515974,1734307845136,-536.86000024,0.000225,2]
[345515976,1734307845149,-262.520001,0.000225,2]
[345515978,1734307845160,-854.04481061,0.000225,2]
[345515979,1734307845171,-91182.00000001,0.000225,2]
[345515980,1734307845188,-1110.384,0.000225,2]
[345515981,1734307845199,-4473.7,0.000225,2]
[345515982,1734307845209,-89868.8376,0.000225,2]
[345515983,1734307845241,-3832054.93301193,0.000225,2]
[345515984,1734307845253,-1063790.43585132,0.000225,2]
[345515985,1734307845263,-5958.21,0.000225,2]
[345515986,1734307845275,-1772.5779999,0.000225,2]
[345515988,1734307845513,-47760.0,0.000225,2]
[345515989,1734307845524,-828.24450349,0.000225,2]
[345515990,1734307845536,-30579.78,0.000225,2]
[345515991,1734307845548,-968.43871744,0.000225,2]
[345515992,1734307845562,-12693.4031788,0.000225,2]
[345515993,1734307845573,-373.55080001,0.000225,2]
[345515994,1734307845584,-5504.74762,0.000225,2]
[345515995,1734307845596,-3179.86425706,0.000225,2]
[345515996,1734307845607,-929.26652671,0.000225,2]
[345515997,1734307845619,-19322.59799999,0.000225,2]
[345515998,1734307845630,-1046.1,0.000225,2]
[345515999,1734307845642,-262.47,0.000225,2]
[345516000,1734307845654,-372147.23721142,0.000225,2]
[345516001,1734307845663,-4500.0,0.000225,2]
[345516002,1734307845673,-47947.43000395,0.000225,2]
[345516011,1734307846324,-432.00902886,0.00022499,3]
[345516012,1734307846406,-67.99097114,0.00022499,3]
[345516013,1734307846415,-102114.28936036,0.000225,2]
[345516014,1734307846426,-3173.4500005,0.000225,2]
[345516015,1734307846437,-1308.826537,0.000225,2]
[345516016,1734307846489,-778385.39011072,0.000225,2]
[345516017,1734307846500,-300.0,0.000225,2]
[345516018,1734307846545,-5915.6183389,0.000225,2]
[345516019,1734307846557,-59156.774,0.000225,2]
[345516020,1734307846570,-200156.62413303,0.000225,2]
[345516021,1734307846600,-3794.04177891,0.000225,2]
[345516022,1734307846611,-960.7875128,0.000225,2]
[345516023,1734307846655,-359800.00000016,0.000225,2]
[345516024,1734307846710,-385.54392368,0.000225,2]
[345516025,1734307846721,-2459.89248,0.000225,2]
[345516026,1734307846732,-15693.5662009,0.000225,2]
[345516027,1734307846766,-3089.9999995,0.000225,2]
[345516028,1734307846820,-1548.59779158,0.000225,2]
[345516029,1734307846831,-63797.17787067,0.000225,2]
[345516569,1734308014492,450.0,0.00013,2]
[345516607,1734309031525,-416.55483636,0.00017678,2]
[345516608,1734309031535,-702.06,0.00019023,2]
[345516609,1734309031545,-3534.03991556,0.00019489,2]
[345516610,1734309031555,-250.0,0.00019523,2]
[345516611,1734309031564,-1680.41370655,0.00019742,2]
[345516612,1734309031573,-1680.41370655,0.00019751,2]
[345516613,1734309031582,-1680.41370655,0.00019752,2]
[345516614,1734309031592,-930.76263102,0.00019777,2]
[345516615,1734309031607,-749.65107553,0.00019777,2]
[345516616,1734309031617,-1680.41370655,0.00019783,2]
[345516617,1734309031626,-1680.41370655,0.00019783,2]
[345516618,1734309031635,-49149.73812822,0.00019995,14]
[345516619,1734309031647,-527.4,0.00019999,2]
[345516620,1734309031657,-610.85534743,0.00019999,2]
[345516621,1734309031667,-500.0,0.00019999,2]
[345516622,1734309031676,-680.62,0.0002,2]
[345516623,1734309031687,-187.76275031,0.0002,60]
[345516624,1734309031698,-26198.83139512,0.0002,3]
[345516625,1734309031707,-29003.4985502,0.0002,2]
[345516626,1734309031724,-2247.3896067,0.0002,2]
[345516627,1734309031736,-22574.83119522,0.0002,2]
[345516628,1734309031759,-1536.3750353,0.0002,2]
[345516629,1734309031771,-4793.7,0.0002,2]
[345516659,1734309037581,-500.0,0.00019973,2]
[345516660,1734309037590,-257.25070126,0.00019973,2]
[345516661,1734309037605,-47.82227402,0.00019973,2]
[345516662,1734309037615,-3451.73276801,0.0002,2]
[345516663,1734309037626,-6517.44,0.0002,2]
[345516664,1734309037641,-519.07829482,0.0002,2]
[345516665,1734309037653,-4677.82886025,0.0002,2]
[345516666,1734309037668,-2102.2,0.0002,2]
[345516667,1734309037680,-1919.66680772,0.0002,2]
[345516668,1734309037698,-441.47710891,0.0002,2]
[345516669,1734309037709,-6019.49141211,0.0002,2]
[345516670,1734309037723,-1999.4286103,0.0002,2]
[345516671,1734309037734,-511.90603702,0.0002,2]
[345516672,1734309037758,-426.66598725,0.0002,2]
[345516673,1734309037769,-312.27156458,0.0002,2]
[345516682,1734309039424,-1362.39004,0.0002,2]
[345516683,1734309039482,-607.46602351,0.0002,2]
[345516684,1734309039494,-2399.86991087,0.0002,2]
[345516685,1734309039543,-47684.09053274,0.0002,2]
[345516686,1734309039554,-1788.94272788,0.0002,2]
[345516687,1734309039566,-1708.11304512,0.0002,2]
[345516688,1734309039660,-437.89403996,0.0002,2]
[345516689,1734309039672,-3475.79030406,0.0002,2]
[345516690,1734309039684,-4927.23480549,0.0002,2]
[345516691,1734309039728,-949.25020891,0.0002,2]
[345516692,1734309039740,-6008.27492,0.0002,2]
[345516698,1734309039899,-504.983278,0.0002,2]
[345516699,1734309039912,-6485.46735255,0.0002,2]
[345516700,1734309039923,-269.48533745,0.0002,2]
[345516701,1734309039934,-4728.3214719,0.0002,2]
[345516702,1734309039952,-357.52779559,0.0002,2]
[345516856,1734309042581,-4248.37676087,0.0002,2]
[345516857,1734309042593,-1917.75304941,0.0002,2]
[345516858,1734309042683,-448426.6422696,0.0002,2]
[345516859,1734309042696,-474355.84340655,0.0002,2]
[345516860,1734309042706,-257.65663788,0.0002,5]
[345516861,1734309042717,-3231.87009797,0.0002,2]
[345516862,1734309042730,-1018.33,0.00020002,2]
[345516863,1734309042739,-998.64,0.00020003,2]
[345516864,1734309042749,-1007.63,0.00020006,2]
[345516865,1734309042760,-990.06,0.0002001,2]
[345516866,1734309042769,-1011.78,0.00020017,2]
[345516867,1734309042779,-993.37,0.00020028,2]
[345516868,1734309042789,-1016.75,0.00020047,2]
[345516869,1734309042799,-1007.79,0.00020079,2]
[345516870,1734309042807,-1016.36,0.00020131,2]
[345516871,1734309042817,-994.63,0.00020221,2]
[345516872,1734309042826,-250.0,0.00020243,2]
[345516873,1734309042835,-14037.04603803,0.000203,2]
[345516874,1734309042844,-988.78,0.00020374,2]
[345516875,1734309042854,-72661.71148056,0.0002049,3]
[345516876,1734309042863,-990.13,0.00020631,2]
[345516877,1734309042872,-150.0,0.00020807,2]
[345516878,1734309042881,-14164.41,0.00020811,2]
[345516879,1734309042891,-200.0,0.00020827,2]
[345516880,1734309042900,-324.54,0.00020862,2]
[345516881,1734309042909,-664.6,0.0002092,2]
[345516882,1734309042919,-280.86,0.00020938,2]
[345516883,1734309042928,-1000.0,0.00020955,2]
[345516884,1734309042937,-726.41,0.00020971,2]
[345516885,1734309042946,-579.89904689,0.00021016,2]
[345516886,1734309042956,-158.26,0.0002118,30]
[345516887,1734309042973,-503427.70291362,0.000212,2]
[345516888,1734309042985,-702.06,0.00021287,2]
[345516889,1734309042995,-250.0,0.00021327,2]
[345516890,1734309043004,-200.0,0.0002135,2]
[345516891,1734309043014,-2006.0,0.0002135,2]
[345516892,1734309043023,-150.0,0.0002135,2]
[345516893,1734309043032,-580.445,0.0002137,2]
[345516894,1734309043041,-2110.0,0.000215,2]
[345516895,1734309043051,-48573.14409178,0.000215,2]
[345516896,1734309043061,-162.85,0.00021529,2]
[345516897,1734309043070,-44654.7,0.00021603,2]
[345516898,1734309043080,-1010.35,0.00021603,2]
[345516899,1734309043089,-324.54,0.00021634,2]
[345516900,1734309043099,-168.25,0.00021747,2]
[345516901,1734309043108,-200.0,0.000219,2]
[345516902,1734309043117,-152.73957428,0.000219,2]
[345516903,1734309043127,-152.73957425,0.000219,2]
[345516904,1734309043136,-152.73957425,0.000219,2]
[345516905,1734309043146,-500.0,0.00021917,3]
[345516906,1734309043155,-500.0,0.00021917,3]
[345516907,1734309043168,-500.0,0.00021917,3]
[345516908,1734309043177,-500.0,0.00021917,3]
[345516909,1734309043187,-500.0,0.00021917,3]
[345516910,1734309043197,-500.0,0.00021917,3]
[345516911,1734309043206,-500.0,0.00021917,3]
[345516912,1734309043221,-500.0,0.00021917,3]
[345516913,1734309043230,-500.0,0.00021917,3]
[345516914,1734309043240,-438.97,0.00021917,3]
[345516915,1734309043250,-500.0,0.00021917,3]
[345516916,1734309043259,-500.0,0.00021917,3]
[345516917,1734309043268,-500.0,0.00021917,3]
[345516918,1734309043278,-500.0,0.00021917,3]
[345516919,1734309043288,-500.0,0.00021917,3]
[345516920,1734309043297,-500.0,0.00021917,3]
[345516921,1734309043307,-500.0,0.00021917,3]
[345516922,1734309043317,-500.0,0.00021917,3]
[345516923,1734309043326,-500.0,0.00021917,3]
[345516924,1734309043335,-163.05,0.00021917,3]
[345516925,1734309043344,-500.0,0.00021917,3]
[345516926,1734309043354,-500.0,0.00021917,3]
[345516927,1734309043363,-500.0,0.00021917,3]
[345516928,1734309043373,-645.98,0.00021917,3]
[345516929,1734309043382,-1077.19,0.00021962,7]
[345516930,1734309043391,-1077.19,0.00021962,7]
[345516931,1734309043400,-1077.19,0.00021962,7]
[345516932,1734309043410,-1077.19,0.00021962,7]
[345516933,1734309043419,-5000.3541955,0.00022,2]
[345516934,1734309043428,-12903.0,0.00022,5]
[345516935,1734309043437,-984.01,0.00022,2]
[345516936,1734309043447,-999.39,0.00022,2]
[345516937,1734309043456,-2000.0,0.00022,2]
[345516938,1734309043468,-2110.0,0.00022,2]
[345516939,1734309043479,-2460.0,0.00022,2]
[345516940,1734309043488,-78414.13080529,0.00022,2]
[345516941,1734309043497,-5000.0,0.00022,3]
[345516942,1734309043507,-5014.0,0.00022,2]
[345516943,1734309043516,-178.2770547,0.0002205,2]
[345516944,1734309043525,-1129.45934324,0.0002205,2]
[345516945,1734309043534,-30016.0,0.000221,3]
[345516946,1734309043543,-229.61535934,0.0002211,2]
[345516947,1734309043552,-3000.0,0.000222,2]
[345516948,1734309043563,-24644.66993996,0.000222,2]
[345516949,1734309043573,-1077.19,0.00022235,7]
[345516950,1734309043582,-1077.19,0.00022235,7]
[345516951,1734309043591,-500.0,0.0002232,2]
[345516952,1734309043603,-838.105,0.00022378,2]
[345516953,1734309043615,-222.476,0.00022378,2]
[345516954,1734309043625,-500.0,0.00022399,3]
[345516955,1734309043634,-500.0,0.00022399,3]
[345516956,1734309043643,-3972.3698,0.000224,2]
[345516957,1734309043654,-721.36,0.000224,31]
[345516958,1734309043663,-721.36,0.000224,31]
[345516959,1734309043672,-721.36,0.000224,31]
[345516960,1734309043681,-721.36,0.000224,31]
[345516961,1734309043691,-721.36,0.000224,31]
[345516962,1734309043702,-721.36,0.000224,31]
[345516963,1734309043711,-721.36,0.000224,31]
[345516964,1734309043728,-721.36,0.000224,31]
[345516965,1734309043737,-721.36,0.000224,31]
[345516966,1734309043746,-721.36,0.000224,31]
[345516967,1734309043755,-721.36,0.000224,31]
[345516968,1734309043764,-721.36,0.000224,31]
[345516969,1734309043773,-721.36,0.000224,31]
[345516970,1734309043783,-721.36,0.000224,31]
[345516971,1734309043792,-721.36,0.000224,31]
[345516972,1734309043801,-721.36,0.000224,31]
[345516973,1734309043810,-90217.44114862,0.000224,2]
[345516974,1734309043970,-841.58625493,0.000224,2]
[345516975,1734309043979,-152.73957425,0.000224,2]
[345516976,1734309043989,-324.54,0.00022406,2]
[345516977,1734309043998,-1500.0,0.00022443,2]
[345516978,1734309044008,-1500.0,0.0002246,2]
[345516979,1734309044018,-153.0,0.00022466,2]
[345516980,1734309044027,-153.0,0.00022466,2]
[345516981,1734309044037,-500.0,0.00022473,2]
[345516982,1734309044047,-500.0,0.00022473,2]
[345516983,1734309044056,-500.0,0.00022494,3]
[345516984,1734309044066,-500.0,0.00022494,3]
[345516985,1734309044075,-500.0,0.00022494,3]
[345516986,1734309044084,-500.0,0.00022494,3]
[345516987,1734309044093,-500.0,0.00022494,3]
[345516988,1734309044102,-500.0,0.00022494,3]
[345516989,1734309044111,-500.0,0.00022494,3]
[345516990,1734309044120,-500.0,0.00022494,3]
[345516991,1734309044129,-500.0,0.00022494,3]
[345516992,1734309044138,-500.0,0.00022494,3]
[345516993,1734309044147,-500.0,0.00022494,3]
[345516994,1734309044156,-500.0,0.00022494,3]
[345516995,1734309044166,-511.79660918,0.00022494,3]
[345516996,1734309044175,-414.63,0.00022494,3]
[345516997,1734309044185,-714.23,0.00022494,3]
[345516998,1734309044194,-7500.0,0.00022494,2]
[345516999,1734309044203,-500.0,0.00022494,3]
[345517000,1734309044211,-558.14,0.00022494,3]
[345517001,1734309044225,-500.0,0.00022494,3]
[345517002,1734309044234,-500.0,0.00022494,3]
[345517003,1734309044243,-500.0,0.00022494,3]
[345517004,1734309044253,-500.0,0.00022494,3]
[345517005,1734309044262,-501.06,0.00022494,3]
[345517006,1734309044271,-500.0,0.00022494,3]
[345517007,1734309044280,-1881.93,0.00022494,3]
[345517008,1734309044289,-500.0,0.00022494,3]
[345517009,1734309044298,-500.0,0.00022494,3]
[345517010,1734309044308,-500.0,0.00022494,3]
[345517011,1734309044317,-500.0,0.00022494,3]
[345517012,1734309044327,-500.0,0.00022494,3]
[345517013,1734309044337,-666.121608,0.00022495,2]
[345517014,1734309044346,-666.121608,0.00022495,4]
[345517015,1734309044355,-666.121608,0.00022495,8]
[345517016,1734309044365,-666.121608,0.00022495,10]
[345517017,1734309044374,-666.121608,0.00022496,12]
[345517018,1734309044383,-666.121608,0.00022496,10]
[345517019,1734309044392,-666.121608,0.00022496,8]
[345517020,1734309044401,-666.121608,0.00022496,4]
[345517021,1734309044411,-666.121608,0.00022496,2]
[345517022,1734309044420,-666.121608,0.00022497,2]
[345517023,1734309044429,-666.121608,0.00022497,4]
[345517024,1734309044438,-666.121608,0.00022497,8]
[345517025,1734309044448,-666.121608,0.00022497,10]
[345517026,1734309044458,-666.121608,0.00022497,12]
[345517027,1734309044470,-666.121608,0.00022498,12]
[345517028,1734309044479,-666.121608,0.00022498,10]
[345517029,1734309044488,-666.121608,0.00022498,8]
[345517030,1734309044498,-666.121608,0.00022498,4]
[345517031,1734309044507,-666.121608,0.00022498,2]
[345517032,1734309044516,-500.0,0.00022498,3]
[345517033,1734309044526,-500.0,0.00022498,3]
[345517034,1734309044535,-500.0,0.00022498,3]
[345517035,1734309044544,-500.0,0.00022498,3]
[345517036,1734309044554,-500.0,0.00022498,3]
[345517037,1734309044564,-617.66,0.00022498,3]
[345517038,1734309044573,-500.0,0.00022498,3]
[345517039,1734309044584,-500.0,0.00022498,3]
[345517040,1734309044593,-500.0,0.00022498,3]
[345517041,1734309044603,-500.0,0.00022498,3]
[345517042,1734309044614,-512.23,0.00022498,3]
[345517043,1734309044626,-500.0,0.00022498,3]
[345517044,1734309044636,-500.0,0.00022498,3]
[345517045,1734309044647,-500.0,0.00022498,3]
[345517046,1734309044657,-500.0,0.00022498,3]
[345517047,1734309044665,-518.54,0.00022498,3]
[345517048,1734309044675,-500.0,0.00022498,3]
[345517049,1734309044685,-500.0,0.00022498,3]
[345517050,1734309044695,-500.0,0.00022498,3]
[345517051,1734309044707,-500.0,0.00022498,3]
[345517052,1734309044719,-500.0,0.00022498,3]
[345517053,1734309044729,-500.0,0.00022498,3]
[345517054,1734309044739,-500.0,0.00022498,3]
[345517055,1734309044748,-209.64,0.00022498,3]
[345517056,1734309044758,-500.0,0.00022498,3]
[345517057,1734309044768,-500.0,0.00022498,3]
[345517058,1734309044778,-500.0,0.00022498,3]
[345517059,1734309044788,-209.49,0.00022498,3]
[345517060,1734309044798,-500.0,0.00022498,3]
[345517061,1734309044807,-500.0,0.00022498,3]
[345517062,1734309044816,-500.0,0.00022498,3]
[345517063,1734309044826,-500.0,0.00022498,3]
[345517064,1734309044835,-584.58717024,0.00022498,3]
[345517065,1734309044844,-500.0,0.00022498,3]
[345517066,1734309044854,-500.0,0.00022498,3]
[345517067,1734309044863,-500.0,0.00022498,3]
[345517068,1734309044873,-500.0,0.00022498,3]
[345517069,1734309044882,-164.6413569,0.00022498,3]
[345517070,1734309044892,-500.0,0.00022498,3]
[345517071,1734309044903,-500.0,0.00022498,3]
[345517072,1734309044912,-500.0,0.00022498,3]
[345517073,1734309044922,-500.0,0.00022498,3]
[345517074,1734309044932,-500.0,0.00022498,3]
[345517075,1734309044942,-500.0,0.00022498,3]
[345517076,1734309044951,-500.0,0.00022498,3]
[345517077,1734309044961,-500.0,0.00022498,3]
[345517078,1734309044974,-500.0,0.00022498,3]
[345517079,1734309044984,-604.48,0.00022498,3]
[345517080,1734309044993,-500.0,0.00022498,3]
[345517081,1734309045003,-500.0,0.00022498,3]
[345517082,1734309045012,-500.0,0.00022498,3]
[345517083,1734309045022,-1000.0,0.00022498,30]
[345517084,1734309045031,-500.0,0.00022498,3]
[345517085,1734309045040,-500.0,0.00022498,3]
[345517086,1734309045049,-500.0,0.00022498,3]
[345517087,1734309045058,-500.0,0.00022498,3]
[345517088,1734309045067,-500.0,0.00022498,3]
[345517089,1734309045077,-500.0,0.00022498,3]
[345517090,1734309045086,-500.0,0.00022498,3]
[345517091,1734309045096,-500.0,0.00022498,3]
[345517092,1734309045105,-500.0,0.00022498,3]
[345517093,1734309045114,-500.0,0.00022498,3]
[345517094,1734309045123,-500.0,0.00022498,3]
[345517095,1734309045132,-500.0,0.00022498,3]
[345517096,1734309045141,-417.38,0.00022498,3]
[345517097,1734309045150,-500.0,0.00022498,3]
[345517098,1734309045160,-531.4129228,0.00022498,3]
[345517099,1734309045170,-319.64667652,0.00022498,3]
[345517100,1734309045180,-1000.0,0.00022498,3]
[345517102,1734309045190,-500.0,0.00022498,3]
[345517103,1734309045199,-1354.48,0.00022498,3]
[345517105,1734309045209,-729.16,0.00022498,7]
[345517107,1734309045223,-500.0,0.00022498,3]
[345517108,1734309045232,-1773.22,0.00022498,3]
[345517109,1734309045242,-500.0,0.00022498,3]
[345517111,1734309045251,-500.0,0.00022498,3]
[345517112,1734309045260,-500.0,0.00022498,3]
[345517113,1734309045270,-500.0,0.00022498,3]
[345517114,1734309045279,-500.0,0.00022498,3]
[345517115,1734309045288,-500.0,0.00022498,3]
[345517116,1734309045298,-500.0,0.00022498,3]
[345517117,1734309045307,-500.0,0.00022498,3]
[345517118,1734309045316,-500.0,0.00022498,3]
[345517120,1734309045326,-500.0,0.00022498,3]
[345517121,1734309045335,-500.0,0.00022498,3]
[345517122,1734309045345,-155.63,0.00022498,3]
[345517123,1734309045355,-500.0,0.00022498,3]
[345517124,1734309045365,-500.0,0.00022498,3]
[345517126,1734309045375,-500.0,0.00022498,3]
[345517128,1734309045384,-500.0,0.00022498,3]
[345517130,1734309045394,-500.0,0.00022498,3]
[345517132,1734309045403,-1386.62,0.00022498,3]
[345517134,1734309045413,-500.0,0.00022498,3]
[345517136,1734309045423,-924.39,0.00022498,3]
[345517138,1734309045432,-500.0,0.00022498,3]
[345517140,1734309045442,-535.63,0.00022498,3]
[345517142,1734309045451,-567.0,0.00022498,3]
[345517144,1734309045461,-637.62,0.00022498,3]
[345517146,1734309045474,-648.2,0.00022498,3]
[345517148,1734309045483,-500.0,0.00022498,3]
[345517150,1734309045492,-500.0,0.00022498,3]
[345517151,1734309045502,-500.0,0.00022498,3]
[345517152,1734309045511,-500.0,0.00022498,3]
[345517153,1734309045521,-350.49555891,0.00022498,3]
[345517154,1734309045530,-650.74,0.00022498,3]
[345517156,1734309045540,-500.0,0.00022498,3]
[345517158,1734309045550,-500.0,0.00022498,3]
[345517160,1734309045561,-500.0,0.00022498,3]
[345517162,1734309045570,-500.0,0.00022498,3]
[345517164,1734309045579,-619.17,0.00022498,3]
[345517166,1734309045588,-500.0,0.00022498,3]
[345517169,1734309045600,-714.23,0.00022498,3]
[345517171,1734309045613,-1966.05440804,0.00022498,2]
[345517173,1734309045622,-500.0,0.00022498,3]
[345517175,1734309045631,-500.0,0.00022498,3]
[345517177,1734309045640,-500.0,0.00022498,3]
[345517178,1734309045650,-162.36572192,0.00022498,3]
[345517181,1734309045660,-500.0,0.00022498,3]
[345517183,1734309045670,-558.14,0.00022498,3]
[345517184,1734309045681,-500.0,0.00022498,3]
[345517186,1734309045690,-500.0,0.00022498,3]
[345517188,1734309045699,-500.0,0.00022498,3]
[345517190,1734309045709,-500.0,0.00022498,3]
[345517192,1734309045722,-625.62,0.00022498,3]
[345517194,1734309045731,-500.0,0.00022498,3]
[345517196,1734309045741,-500.0,0.00022498,3]
[345517198,1734309045750,-405.85,0.00022498,3]
[345517200,1734309045760,-500.0,0.00022498,3]
[345517202,1734309045770,-500.0,0.00022498,3]
[345517204,1734309045779,-500.0,0.00022498,3]
[345517206,1734309045789,-500.0,0.00022498,3]
[345517208,1734309045799,-454.9,0.00022498,3]
[345517210,1734309045809,-1881.93,0.00022498,3]
[345517212,1734309045819,-500.0,0.00022498,3]
[345517213,1734309045829,-500.0,0.00022498,3]
[345517215,1734309045839,-500.0,0.00022498,3]
[345517217,1734309045848,-500.0,0.00022498,3]
[345517218,1734309045857,-501.34,0.00022498,3]
[345517221,1734309045867,-500.0,0.00022498,3]
[345517223,1734309045877,-500.0,0.00022498,3]
[345517225,1734309045886,-500.0,0.00022498,3]
[345517227,1734309045895,-500.0,0.00022498,3]
[345517228,1734309045905,-500.0,0.00022498,3]
[345517230,1734309045915,-500.0,0.00022498,3]
[345517231,1734309045924,-500.0,0.00022498,3]
[345517233,1734309045934,-500.0,0.00022498,3]
[345517234,1734309045943,-964.44,0.00022498,3]
[345517236,1734309045953,-994.99,0.00022499,2]
[345517237,1734309045962,-235.59780243,0.00022499,2]
[345517238,1734309045976,-2000.0,0.00022499,2]
[345517239,1734309045986,-456.0425969,0.00022499,3]
[345517240,1734309045995,-500.90424164,0.00022499,3]
[345517242,1734309046006,-522.01185624,0.00022499,3]
[345517243,1734309046016,-500.0,0.00022499,3]
[345517244,1734309046025,-500.0,0.00022499,3]
[345517246,1734309046034,-500.0,0.00022499,3]
[345517247,1734309046043,-500.0,0.00022499,3]
[345517248,1734309046053,-500.0,0.00022499,3]